bitfinex/quotes_BTCUSD_20220202
["timestamp","ask_amount","ask_price","bid_price","bid_amount"]
[1643828535263,0.85014405,37535.0,37534.0,0.407475]
[1643828535466,0.85014405,37535.0,37534.0,0.957475]
[1643828535664,0.85014405,37535.0,37534.0,0.6034]
[1643828536420,0.85014405,37535.0,37534.0,0.0534]
[1643828536619,0.85014405,37535.0,37534.0,0.4534]
[1643828537220,0.85014405,37535.0,37534.0,0.807475]
[1643828537521,0.85014405,37535.0,37534.0,0.4]
[1643828538021,1.06346984,37535.0,37534.0,0.754075]
[1643828538222,1.06346984,37535.0,37533.0,0.05]
[1643828544116,1.11346984,37535.0,37533.0,0.05]
[1643828544316,0.954075,37534.0,37533.0,0.05]
[1643828545016,1.25016812,37534.0,37533.0,0.05]
[1643828545214,1.25030128,37534.0,37533.0,0.05]
[1643828545412,1.32981593,37534.0,37533.0,0.05]
[1643828545914,0.65030128,37534.0,37533.0,0.05]
[1643828546115,0.35420816,37534.0,37533.0,0.05]
[1643828547411,0.70420816,37534.0,37533.0,0.05]
[1643828547864,0.80126099,37534.0,37533.0,0.05]
[1643828548065,0.35420816,37534.0,37533.0,0.05]
[1643828549265,0.35388741,37534.0,37533.0,0.05]
[1643828550267,0.9,37533.0,37523.0,0.1151]
[1643828550567,0.27002535,37526.0,37523.0,0.1151]
[1643828550767,0.133274,37530.0,37523.0,0.1151]
[1643828550768,0.25922677,37525.0,37523.0,0.1151]
[1643828550969,0.25922677,37525.0,37522.0,0.36451734]
[1643828551168,0.05,37526.0,37522.0,0.36451734]
[1643828551418,0.05,37529.0,37523.0,0.353686]
[1643828551617,0.066636,37529.0,37522.0,0.41451734]
[1643828551915,0.066635,37526.0,37523.0,0.353686]
[1643828552115,0.116635,37526.0,37523.0,0.353686]
[1643828552313,0.2465863,37525.0,37523.0,0.353686]
[1643828552517,0.3132223,37525.0,37522.0,0.41451724]
[1643828553114,0.3132223,37525.0,37522.0,0.41507472]
[1643828553412,0.3132223,37525.0,37522.0,0.41447779]
[1643828554314,0.3132223,37525.0,37522.0,0.41392031]
[1643828555363,0.00013296,37524.0,37522.0,0.41392031]
[1643828555763,0.00013296,37524.0,37523.0,1.153686]
[1643828556767,0.00013296,37524.0,37522.0,0.41392031]
[1643828557865,0.00013296,37524.0,37523.0,1.403686]
[1643828560221,0.00013296,37524.0,37523.0,1.05]
[1643828560421,0.06676769,37526.0,37523.0,1.05]
[1643828561019,0.06676769,37526.0,37524.0,0.353686]
[1643828561820,0.06676769,37526.0,37523.0,1.05]
[1643828562120,0.06676769,37526.0,37523.0,1.15239214]
[1643828562320,0.06676769,37526.0,37523.0,1.05]
[1643828562522,0.11676769,37526.0,37524.0,0.353686]
[1643828562771,0.23678065,37525.0,37524.0,0.353686]
[1643828562966,0.23678065,37525.0,37523.0,1.05]
[1643828563367,0.43691081,37525.0,37523.0,1.05]
[1643828563766,0.23678065,37525.0,37523.0,1.05]
[1643828563965,0.23678065,37525.0,37524.0,1.89480049]
[1643828564763,0.23678065,37525.0,37524.0,0.353686]
[1643828564967,0.23678065,37525.0,37522.0,0.48055131]
[1643828565467,0.23691387,37525.0,37522.0,0.48055131]
[1643828566423,0.23691387,37525.0,37522.0,0.48112307]
[1643828567826,0.23691387,37525.0,37522.0,0.48055131]
[1643828568030,0.00013322,37525.0,37522.0,0.48055131]
[1643828568227,0.00013322,37525.0,37523.0,0.353686]
[1643828569028,0.27357902,37525.0,37523.0,0.353686]
[1643828569228,0.27357902,37525.0,37522.0,0.41392031]
[1643828569825,0.27357902,37525.0,37522.0,0.41444509]
[1643828570465,0.27357902,37525.0,37523.0,0.066632]
[1643828570668,0.27357902,37525.0,37522.0,0.41444509]
[1643828570867,0.27357902,37525.0,37522.0,0.41392031]
[1643828571066,0.27357902,37525.0,37522.0,0.41444509]
[1643828572067,0.27357902,37525.0,37522.0,0.41392031]
[1643828572268,0.27357902,37525.0,37522.0,0.41445202]
[1643828573171,0.27349031,37525.0,37522.0,0.41445202]
[1643828573368,0.27349031,37525.0,37522.0,0.41392031]
[1643828573569,0.27349031,37525.0,37522.0,0.41445202]
[1643828574119,4.451e-05,37525.0,37523.0,0.353686]
[1643828575316,0.00012997,37525.0,37523.0,0.353686]
[1643828575722,0.00012997,37525.0,37523.0,0.69427589]
[1643828575918,0.05,37527.0,37525.0,0.00011777]
[1643828576117,0.05,37527.0,37526.0,2.003686]
[1643828577520,0.066622,37528.0,37526.0,2.070307]
[1643828577764,0.066622,37528.0,37527.0,0.353686]
[1643828578267,0.066622,37528.0,37526.0,0.066621]
[1643828578464,0.31322077,37528.0,37526.0,0.066621]
[1643828578664,0.066622,37528.0,37526.0,0.066621]
[1643828579066,0.066622,37528.0,37527.0,0.353686]
[1643828579266,0.066622,37528.0,37527.0,0.407086]
[1643828579471,0.05,37531.0,37527.0,0.7467674]
[1643828579667,0.05,37531.0,37528.0,0.48691]
[1643828579866,0.05,37531.0,37529.0,0.407086]
[1643828580067,0.05,37531.0,37530.0,2.32911252]
[1643828580267,0.05,37531.0,37530.0,2.38251252]
[1643828580467,0.8,37535.0,37530.0,2.38251252]
[1643828580667,0.8,37535.0,37533.0,0.07896428]
[1643828580871,0.8,37535.0,37534.0,1.557086]
[1643828582315,0.8,37535.0,37534.0,1.554086]
[1643828582515,0.8,37535.0,37534.0,1.620693]
[1643828583421,0.8,37535.0,37534.0,0.404086]
[1643828583618,0.85,37535.0,37534.0,0.404086]
[1643828583817,0.8,37535.0,37534.0,0.0534]
[1643828584417,1.14248626,37535.0,37534.0,0.0534]
[1643828584816,1.19248626,37535.0,37534.0,0.0534]
[1643828585017,1.19248626,37535.0,37533.0,0.05]
[1643828585281,1.32572426,37535.0,37533.0,0.05]
[1643828585883,1.2265214,37535.0,37533.0,0.05]
[1643828586485,0.983238,37535.0,37533.0,0.05]
[1643828586884,0.983238,37535.0,37533.0,0.1034]
[1643828587184,0.933238,37535.0,37534.0,0.653646]
[1643828587585,0.8,37535.0,37534.0,0.653646]
[1643828588689,0.85,37535.0,37534.0,0.653646]
[1643828588915,0.8,37535.0,37534.0,1.25907942]
[1643828589116,0.8,37535.0,37534.0,1.31247942]
[1643828589316,0.8,37535.0,37534.0,1.41247942]
[1643828589516,0.8,37535.0,37534.0,1.31247942]
[1643828589915,0.8,37535.0,37534.0,0.707046]
[1643828590320,1.05516938,37535.0,37534.0,0.707046]
[1643828590916,0.8,37535.0,37534.0,0.707046]
[1643828591917,0.8,37535.0,37534.0,1.66140214]
[1643828592771,0.8,37535.0,37534.0,0.91140214]
[1643828592968,0.8,37535.0,37534.0,0.707046]
[1643828593973,0.8,37535.0,37534.0,1.057046]
[1643828594570,0.8,37535.0,37534.0,1.157046]
[1643828594869,0.8,37535.0,37534.0,1.957046]
[1643828595069,0.8,37535.0,37534.0,2.007046]
[1643828595271,0.80012723,37535.0,37534.0,2.007046]
[1643828595470,0.80012723,37535.0,37534.0,1.043698]
[1643828595869,0.80012723,37535.0,37534.0,1.993698]
[1643828595870,0.04711872,37535.0,37534.0,1.993698]
[1643828596071,0.04711872,37535.0,37534.0,1.043698]
[1643828598525,0.04711872,37535.0,37534.0,0.693698]
[1643828598723,0.04711872,37535.0,37534.0,1.043698]
[1643828600270,0.04711872,37535.0,37534.0,0.693698]
[1643828601469,0.31750673,37535.0,37534.0,0.393698]
[1643828601673,0.45074573,37535.0,37533.0,0.05]
[1643828602875,0.45074573,37535.0,37533.0,0.116615]
[1643828603470,0.45074573,37535.0,37534.0,1.403646]
[1643828603471,0.18035772,37535.0,37534.0,1.403646]
[1643828604141,0.04711872,37535.0,37534.0,1.403646]
[1643828604541,0.04711872,37535.0,37534.0,1.69848285]
[1643828605443,0.05,37539.0,37535.0,1.65]
[1643828605643,0.0027676,37542.0,37536.0,0.623817]
[1643828605944,0.0027676,37542.0,37537.0,0.353646]
[1643828606242,0.00202732,37542.0,37538.0,0.1534]
[1643828606442,0.00202732,37542.0,37539.0,0.353646]
[1643828606641,0.00202732,37542.0,37540.0,0.0534]
[1643828606846,0.00202732,37542.0,37541.0,1.653646]
[1643828607043,0.066594,37545.0,37542.0,0.28365583]
[1643828607245,0.001,37547.0,37543.0,0.407046]
[1643828607443,0.001,37547.0,37544.0,0.570417]
[1643828607679,0.001,37547.0,37545.0,0.407046]
[1643828607879,0.001,37547.0,37546.0,2.103646]
[1643828608078,0.001,37547.0,37546.0,2.53396413]
[1643828608478,0.00040655,37548.0,37547.0,1.65]
[1643828608679,0.00040655,37548.0,37547.0,2.057046]
[1643828608878,0.00040655,37548.0,37547.0,2.157046]
[1643828609481,0.001,37549.0,37547.0,2.157046]
[1643828609678,0.001,37551.0,37549.0,1.3]
[1643828609679,0.25021864,37550.0,37549.0,1.3]
[1643828609879,0.25021864,37550.0,37549.0,1.773625]
[1643828610179,0.25021864,37550.0,37549.0,1.523625]
[1643828610780,0.25021864,37550.0,37549.0,1.423625]
[1643828612219,0.00157982,37551.0,37550.0,1.65]
[1643828612420,0.00157982,37551.0,37550.0,2.057046]
[1643828612622,0.00157982,37551.0,37550.0,2.157046]
[1643828613023,0.051,37553.0,37552.0,1.716566]
[1643828613225,0.051,37553.0,37552.0,2.223612]
[1643828613523,0.001,37553.0,37552.0,2.223612]
[1643828614124,0.002,37555.0,37552.0,2.223612]
[1643828614325,0.05,37557.0,37555.0,0.13312726]
[1643828614528,5.95e-06,37560.0,37555.0,0.13312726]
[1643828614529,0.01494053,37566.0,37556.0,0.407046]
[1643828614728,0.01494053,37566.0,37552.0,0.05]
[1643828614729,0.15,37565.0,37552.0,0.05]
[1643828614926,0.05,37565.0,37552.0,0.05]
[1643828615173,0.2415075,37560.0,37552.0,0.05]
[1643828615374,0.25480071,37558.0,37553.0,0.420224]
[1643828615579,0.25480071,37558.0,37554.0,0.353646]
[1643828615774,0.25480071,37558.0,37553.0,0.066578]
[1643828615972,0.25480071,37558.0,37554.0,0.353646]
[1643828616175,0.32137971,37558.0,37554.0,0.353646]
[1643828616375,0.066579,37558.0,37554.0,0.403646]
[1643828616574,0.066579,37558.0,37555.0,0.407046]
[1643828616775,0.06625834,37558.0,37556.0,0.353646]
[1643828616974,0.06625834,37558.0,37556.0,0.42022]
[1643828617281,0.06625834,37558.0,37557.0,0.353646]
[1643828617876,0.06625834,37558.0,37556.0,0.066574]
[1643828618277,0.06625834,37558.0,37557.0,0.353646]
[1643828618477,0.06625834,37558.0,37556.0,0.066574]
[1643828619123,0.06625834,37558.0,37557.0,0.55103935]
[1643828619321,0.06625834,37558.0,37557.0,0.353646]
[1643828620122,0.06625834,37558.0,37556.0,0.066574]
[1643828620322,0.06625834,37558.0,37555.0,0.05400298]
[1643828620522,0.04925834,37558.0,37555.0,0.05400298]
[1643828620723,0.04925834,37558.0,37556.0,0.420221]
[1643828620921,0.04925834,37558.0,37556.0,0.066575]
[1643828621122,0.04925834,37558.0,37557.0,0.353646]
[1643828622130,0.00056896,37559.0,37557.0,0.55061328]
[1643828622324,0.00056896,37559.0,37558.0,1.9039933]
[1643828622768,0.00056896,37559.0,37558.0,0.353646]
[1643828622968,0.00056896,37559.0,37558.0,0.61854316]
[1643828623168,0.00056896,37559.0,37558.0,0.42021]
[1643828623569,0.00053035,37560.0,37558.0,1.17021]
[1643828623770,0.00053035,37560.0,37559.0,1.003646]
[1643828624675,0.06709635,37561.0,37559.0,1.003646]
[1643828624872,0.06709635,37561.0,37560.0,1.003646]
[1643828625079,0.11709635,37561.0,37560.0,1.003646]
[1643828625271,0.11709635,37561.0,37560.0,0.353646]
[1643828625472,0.05,37560.0,37558.0,0.119964]
[1643828625672,0.05,37560.0,37559.0,0.353646]
[1643828625872,0.045,37560.0,37559.0,0.353646]
[1643828626533,0.045,37560.0,37558.0,0.1034]
[1643828626832,0.045,37560.0,37559.0,0.353646]
[1643828627636,0.045,37560.0,37558.0,0.1034]
[1643828628134,0.06710057,37561.0,37559.0,0.56722045]
[1643828628135,0.06706641,37561.0,37559.0,0.56722045]
[1643828628334,0.06706641,37561.0,37558.0,0.1034]
[1643828628335,0.06706641,37561.0,37560.0,2.26906353]
[1643828628734,0.00050041,37561.0,37560.0,2.057046]
[1643828629534,0.09550012,37563.0,37561.0,0.3]
[1643828629733,0.09550012,37563.0,37562.0,0.407046]
[1643828630573,0.04550012,37563.0,37562.0,0.407046]
[1643828630777,0.066561,37564.0,37562.0,0.407046]
[1643828630974,0.066561,37564.0,37562.0,0.0534]
[1643828631272,0.066501,37564.0,37562.0,0.0534]
[1643828632273,0.3368994,37564.0,37562.0,0.0534]
[1643828633776,0.3368994,37564.0,37562.0,0.119963]
[1643828634029,0.061501,37564.0,37562.0,0.119963]
[1643828634728,0.061501,37564.0,37563.0,0.353646]
[1643828634930,0.29514692,37564.0,37562.0,0.066563]
[1643828635532,0.34514692,37564.0,37559.0,0.066565]
[1643828635731,0.29514692,37564.0,37558.0,0.05]
[1643828636133,0.061501,37564.0,37558.0,0.05]
[1643828636333,0.061501,37564.0,37559.0,0.353646]
[1643828637987,0.06203399,37564.0,37560.0,0.353646]
[1643828638387,0.06203399,37564.0,37558.0,0.05]
[1643828638587,0.06203399,37564.0,37559.0,0.353646]
[1643828638992,0.06203399,37564.0,37559.0,0.61295675]
[1643828639191,0.06203399,37564.0,37560.0,0.353646]
[1643828640092,0.06203557,37564.0,37559.0,0.066565]
[1643828640294,0.23133451,37563.0,37559.0,0.066565]
[1643828640495,0.06203557,37564.0,37560.0,0.353484]
[1643828640694,0.06203557,37564.0,37561.0,0.353484]
[1643828640893,0.06203557,37564.0,37559.0,0.066565]
[1643828641094,0.06203557,37564.0,37560.0,0.353484]
[1643828641456,0.0620377,37564.0,37560.0,0.353484]
[1643828641647,0.0620377,37564.0,37558.0,0.05]
[1643828641848,0.0619777,37564.0,37558.0,0.05]
[1643828642049,0.0619177,37564.0,37558.0,0.05]
[1643828642447,0.20131877,37562.0,37558.0,0.05]
[1643828642648,0.20131877,37562.0,37559.0,0.353484]
[1643828642948,0.06191769,37564.0,37559.0,0.420051]
[1643828643150,0.06191769,37564.0,37560.0,0.353484]
[1643828643348,0.06191769,37564.0,37559.0,0.066567]
[1643828643548,0.06191769,37564.0,37560.0,0.353484]
[1643828643751,0.06191748,37564.0,37560.0,0.353484]
[1643828644049,0.26659036,37564.0,37560.0,0.353484]
[1643828644250,0.06191748,37564.0,37560.0,0.353484]
[1643828644851,0.06191727,37564.0,37560.0,0.353484]
[1643828645690,0.00020076,37561.0,37560.0,0.353484]
[1643828645889,0.00020076,37561.0,37560.0,0.5533366]
[1643828646093,0.00020076,37561.0,37560.0,0.353484]
[1643828646290,0.00020076,37561.0,37560.0,2.31929784]
[1643828646491,0.00020076,37561.0,37560.0,2.60581484]
[1643828646790,0.00053627,37564.0,37561.0,1.65]
[1643828646991,0.00053627,37564.0,37562.0,0.406884]
[1643828647192,0.00053627,37564.0,37563.0,1.353484]
[1643828647895,0.13149853,37566.0,37563.0,1.403484]
[1643828648090,0.13149853,37566.0,37564.0,0.353484]
[1643828648938,0.08149853,37566.0,37564.0,0.353484]
[1643828649138,0.08149853,37566.0,37560.0,0.133117]
[1643828649338,0.08149853,37566.0,37561.0,0.353484]
[1643828650539,0.08149853,37566.0,37562.0,0.05]
[1643828650738,0.08149853,37566.0,37563.0,0.353484]
[1643828650942,8.339e-05,37564.0,37563.0,0.953484]
[1643828651142,8.339e-05,37564.0,37563.0,1.003484]
[1643828651344,2.339e-05,37564.0,37563.0,1.003484]
[1643828651540,0.07703869,37566.0,37564.0,0.65]
[1643828651740,0.07697869,37566.0,37565.0,0.353484]
[1643828652142,0.07697869,37566.0,37563.0,0.05]
[1643828652341,0.07697869,37566.0,37564.0,0.353484]
[1643828652540,0.07697869,37566.0,37562.0,0.05]
[1643828652783,0.07697869,37566.0,37563.0,0.420044]
[1643828652981,0.07697869,37566.0,37564.0,0.353484]
[1643828653779,0.07597869,37566.0,37564.0,0.353484]
[1643828657636,0.07597869,37566.0,37563.0,0.119961]
[1643828657839,0.07597869,37566.0,37564.0,0.353484]
[1643828658742,0.07597869,37566.0,37563.0,0.066561]
[1643828658941,0.07597869,37566.0,37562.0,0.05]
[1643828659240,0.10092287,37563.0,37562.0,0.05]
[1643828659441,0.10092287,37563.0,37562.0,0.403484]
[1643828660040,0.00092287,37563.0,37562.0,0.403484]
[1643828660285,0.00092287,37563.0,37562.0,0.903484]
[1643828660986,0.07597869,37566.0,37562.0,0.970044]
[1643828661186,0.07597869,37566.0,37563.0,0.353484]
[1643828662187,0.07597869,37566.0,37562.0,0.55]
[1643828663388,0.07597869,37566.0,37563.0,0.353484]
[1643828663589,0.07597869,37566.0,37562.0,0.55]
[1643828663790,0.07587797,37565.0,37563.0,0.353484]
[1643828664233,0.07587797,37565.0,37562.0,0.05]
[1643828666434,0.07587797,37565.0,37563.0,0.353484]
[1643828667235,0.07587797,37565.0,37562.0,0.05]
[1643828667436,0.07587797,37565.0,37562.0,0.116561]
[1643828667691,0.07597869,37566.0,37563.0,0.353484]
[1643828668892,0.15158602,37566.0,37563.0,0.353484]
[1643828669294,0.15158602,37566.0,37564.0,0.06655592]
[1643828669696,0.15158602,37566.0,37564.0,0.13311292]
[1643828670194,0.07597869,37566.0,37564.0,0.13311292]
[1643828670397,0.07597869,37566.0,37565.0,2.21424674]
[1643828670398,0.01494053,37566.0,37565.0,2.21424674]
[1643828670595,0.01494053,37566.0,37565.0,2.27394674]
[1643828670794,0.0017084,37566.0,37565.0,2.32394674]
[1643828670993,0.0017084,37566.0,37565.0,2.113184]
[1643828671194,0.0017084,37566.0,37565.0,2.19770524]
[1643828671456,0.0017084,37566.0,37565.0,3.44165116]
[1643828672754,0.052,37568.0,37567.0,1.716543]
[1643828673058,0.052,37568.0,37567.0,2.129727]
[1643828673256,0.052,37568.0,37567.0,2.279727]
[1643828674056,0.002,37568.0,37567.0,2.279727]
[1643828675809,0.051,37571.0,37569.0,1.65]
[1643828676009,0.37037861,37582.0,37571.0,1.65]
[1643828676010,0.03197074,37582.0,37571.0,1.65]
[1643828676308,0.076533,37579.0,37572.0,2.063184]
[1643828676512,0.076533,37579.0,37573.0,0.9]
[1643828676513,0.05,37575.0,37573.0,0.9]
[1643828676708,0.05,37575.0,37574.0,0.963184]
[1643828677308,0.00181,37576.0,37574.0,1.029719]
[1643828677508,0.00033226,37579.0,37577.0,0.29345533]
[1643828677707,0.00033226,37579.0,37578.0,0.353484]
[1643828678207,0.12840726,37580.0,37578.0,0.353484]
[1643828679239,0.12840726,37580.0,37578.0,0.403484]
[1643828679446,0.00029297,37575.0,37574.0,1.88204993]
[1643828679637,0.00029297,37575.0,37574.0,2.08436619]
[1643828680040,0.00237729,37581.0,37576.0,0.066527]
[1643828680239,0.00237729,37581.0,37579.0,0.37880493]
[1643828680441,0.00182697,37581.0,37580.0,1.163079]
[1643828680838,0.00176697,37581.0,37580.0,0.413079]
[1643828681041,0.08417176,37582.0,37580.0,0.413079]
[1643828681244,0.03511176,37582.0,37581.0,0.653379]
[1643828681444,0.03411176,37582.0,37581.0,0.413079]
[1643828681644,0.03221647,37582.0,37581.0,0.413079]
[1643828681844,0.03215647,37582.0,37577.0,0.1097]
[1643828682046,0.03209647,37582.0,37578.0,0.353379]
[1643828682243,0.03209647,37582.0,37577.0,0.1097]
[1643828682244,0.03203647,37582.0,37577.0,0.1097]
[1643828682443,0.28936799,37581.0,37577.0,0.1097]
[1643828682699,0.21176274,37580.0,37577.0,0.05]
[1643828682895,0.00094,37579.0,37577.0,0.05]
[1643828683094,0.753319,37578.0,37577.0,0.05]
[1643828683298,0.753319,37578.0,37573.0,0.01967642]
[1643828683299,0.99994,37577.0,37573.0,0.01967642]
[1643828683495,0.353379,37576.0,37573.0,0.01967642]
[1643828683695,0.08552841,37574.0,37573.0,0.01967642]
[1643828684097,0.05,37574.0,37567.0,0.066552]
[1643828684494,0.066552,37573.0,37569.0,0.05]
[1643828685296,0.066552,37573.0,37569.0,0.116548]
[1643828685496,0.066552,37573.0,37570.0,0.353396]
[1643828685797,0.00055237,37572.0,37570.0,0.353396]
[1643828685998,0.00055237,37572.0,37570.0,0.348396]
[1643828686646,0.00055237,37572.0,37570.0,0.4149388]
[1643828686839,0.00055237,37572.0,37571.0,1.203396]
[1643828687040,0.00055986,37573.0,37572.0,0.916539]
[1643828687241,0.00055986,37573.0,37572.0,1.269951]
[1643828687642,0.61964,37584.0,37574.0,1.65681035]
[1643828687841,0.03161074,37582.0,37575.0,0.85592629]
[1643828688044,0.00212377,37580.0,37576.0,0.353412]
[1643828688243,0.00212377,37580.0,37577.0,0.1]
[1643828688443,0.00212377,37580.0,37578.0,0.406712]
[1643828688643,0.00212377,37580.0,37579.0,1.269937]
[1643828689043,0.00212377,37580.0,37579.0,0.519937]
[1643828689344,0.11790123,37582.0,37579.0,0.519937]
[1643828689542,0.11790123,37582.0,37580.0,0.353412]
[1643828690388,0.11790123,37582.0,37579.0,0.066525]
[1643828690887,0.11790123,37582.0,37580.0,0.353412]
[1643828691290,0.03161074,37582.0,37580.0,0.353412]
[1643828691489,0.03201356,37582.0,37580.0,0.353412]
[1643828692090,0.01701356,37582.0,37580.0,0.353412]
[1643828692294,0.005,37583.0,37582.0,1.98298644]
[1643828692491,0.25509207,37583.0,37582.0,2.33639844]
[1643828692692,0.25549489,37583.0,37582.0,2.33639844]
[1643828692892,0.25549489,37583.0,37582.0,1.98298644]
[1643828693091,1.20549489,37583.0,37582.0,1.23069688]
[1643828693291,0.65890689,37583.0,37582.0,1.23069688]
[1643828694355,0.65850407,37583.0,37582.0,1.23069688]
[1643828694857,0.30509207,37583.0,37582.0,1.23069688]
[1643828695255,0.25509207,37583.0,37582.0,1.23069688]
[1643828698094,0.13964751,37584.0,37582.0,1.23069688]
[1643828699092,0.20852711,37583.0,37582.0,1.23069688]
[1643828699492,0.139059,37584.0,37582.0,1.23069688]
[1643828700294,0.13964751,37584.0,37582.0,1.23069688]
[1643828700495,0.13964751,37584.0,37582.0,1.29722488]
[1643828701094,0.00158851,37584.0,37583.0,1.85914094]
[1643828701297,0.00058851,37584.0,37583.0,2.16352023]
[1643828701540,0.00633,37585.0,37583.0,2.16352023]
[1643828701541,0.00686653,37585.0,37583.0,2.16352023]
[1643828701740,0.23226613,37585.0,37584.0,0.353412]
[1643828701941,0.23620613,37585.0,37583.0,0.0533]
[1643828702144,0.01180653,37585.0,37583.0,0.0533]
[1643828702341,0.06653,37584.0,37582.0,1.23069688]
[1643828702543,0.06747,37584.0,37582.0,1.28069688]
[1643828702746,0.09154052,37583.0,37582.0,1.28069688]
[1643828705589,0.06795266,37584.0,37582.0,1.28069688]
[1643828705889,0.06795266,37584.0,37583.0,0.853412]
[1643828706087,0.06695266,37584.0,37583.0,0.853412]
[1643828706488,0.15727342,37584.0,37583.0,0.353412]
[1643828706788,0.15673076,37584.0,37583.0,0.353412]
[1643828707990,0.15673076,37584.0,37582.0,1.28069688]
[1643828708287,0.15773076,37584.0,37582.0,1.28069688]
[1643828709647,0.06741,37584.0,37582.0,1.28069688]
[1643828709844,0.06741,37584.0,37583.0,1.103412]
[1643828710046,0.06641,37584.0,37583.0,1.203412]
[1643828710647,0.06641,37584.0,37583.0,0.353412]
[1643828711046,0.06641,37584.0,37582.0,1.28069688]
[1643828711249,0.06741,37584.0,37582.0,1.28069688]
[1643828712148,0.001,37584.0,37582.0,1.34722165]
[1643828712347,0.001,37584.0,37583.0,1.003412]
[1643828712547,0.00592681,37585.0,37584.0,0.91652]
[1643828712548,0.00690496,37585.0,37584.0,0.91652]
[1643828712799,0.00590496,37585.0,37584.0,0.419932]
[1643828713202,0.00590496,37585.0,37584.0,0.353412]
[1643828713396,0.00590496,37585.0,37582.0,1.34722165]
[1643828713597,0.00690496,37585.0,37583.0,0.353412]
[1643828713802,0.00690496,37585.0,37583.0,0.586451]
[1643828713998,0.00633,37585.0,37584.0,0.853412]
[1643828714198,0.00533,37585.0,37584.0,0.853412]
[1643828714798,0.00533,37585.0,37584.0,0.91993]
[1643828715401,0.00548113,37585.0,37584.0,0.91993]
[1643828716100,0.00048113,37585.0,37584.0,0.91993]
[1643828716301,0.00048113,37585.0,37584.0,1.01233278]
[1643828716543,0.00048113,37585.0,37584.0,0.41233278]
[1643828717745,0.06700913,37585.0,37582.0,1.34722488]
[1643828717950,0.27165022,37584.0,37583.0,0.353356]
[1643828718149,0.27065022,37584.0,37583.0,0.353356]
[1643828718551,0.06800913,37585.0,37583.0,0.353356]
[1643828719547,0.30083244,37585.0,37583.0,0.353356]
[1643828720604,0.30077244,37585.0,37582.0,1.34722488]
[1643828720902,0.00094,37584.0,37582.0,1.34722488]
[1643828722103,0.00094,37584.0,37582.0,1.28069688]
[1643828722706,0.953356,37583.0,37582.0,1.28069688]
[1643828723107,1.003356,37583.0,37582.0,1.28069688]
[1643828723304,0.453356,37583.0,37582.0,1.28069688]
[1643828723508,0.403356,37583.0,37582.0,1.28069688]
[1643828723941,1.003356,37583.0,37582.0,0.52843942]
[1643828724142,0.403356,37583.0,37582.0,0.52843942]
[1643828724543,0.353356,37583.0,37582.0,0.52843942]
[1643828725344,0.903356,37583.0,37582.0,0.52843942]
[1643828725545,0.40351373,37583.0,37582.0,0.52843942]
[1643828726048,0.05015773,37583.0,37582.0,0.52843942]
[1643828726246,0.00015773,37583.0,37582.0,0.52843942]
[1643828726451,0.35351373,37583.0,37582.0,0.52843942]
[1643828726850,0.05015773,37583.0,37582.0,0.52843942]
[1643828727049,0.40351373,37583.0,37582.0,0.52843942]
[1643828727894,0.33721153,37583.0,37582.0,0.52843942]
[1643828729094,0.38721153,37583.0,37582.0,0.52843942]
[1643828729295,0.73721153,37583.0,37582.0,0.52843942]
[1643828729594,0.06798491,37584.0,37582.0,0.52843942]
[1643828729795,0.353365,37583.0,37582.0,0.52843942]
[1643828730194,0.00144591,37584.0,37582.0,0.52843942]
[1643828730396,0.353365,37583.0,37582.0,0.52843942]
[1643828730595,0.35350696,37583.0,37582.0,0.52843942]
[1643828730795,0.39850696,37583.0,37582.0,0.52843942]
[1643828730997,0.15850696,37583.0,37582.0,0.52843942]
[1643828731441,0.00014196,37583.0,37582.0,0.52843942]
[1643828732542,0.06261996,37584.0,37582.0,0.52843942]
[1643828732741,0.353365,37583.0,37582.0,0.52843942]
[1643828733442,1.45,37581.0,37571.0,0.133081]
[1643828733643,1.45,37581.0,37566.0,0.3637]
[1643828733644,0.63094784,37580.0,37566.0,0.3637]
[1643828733946,0.08795719,37565.0,37563.0,0.3929]
[1643828734141,0.21102684,37578.0,37564.0,0.419923]
[1643828734341,0.00094,37577.0,37569.0,0.05]
[1643828734542,0.2750558,37570.0,37569.0,0.05]
[1643828735797,0.85050839,37570.0,37569.0,0.05]
[1643828735998,0.94549201,37570.0,37569.0,0.05]
[1643828736498,0.94049201,37570.0,37569.0,0.05]
[1643828736695,0.94049201,37570.0,37569.0,0.045]
[1643828737896,0.71840442,37570.0,37569.0,0.045]
[1643828744294,1.01840442,37570.0,37569.0,0.045]
[1643828744493,0.61840442,37570.0,37569.0,0.045]
[1643828746443,0.61840442,37570.0,37556.0,0.233132]
[1643828746444,1.25,37569.0,37558.0,0.066569]
[1643828746645,0.91529149,37568.0,37555.0,0.24526536]
[1643828746848,0.56192649,37568.0,37555.0,0.1643]
[1643828747045,0.353365,37567.0,37555.0,0.1143]
[1643828747249,0.21156498,37566.0,37555.0,0.1143]
[1643828747446,0.25558009,37564.0,37559.0,0.05]
[1643828747647,0.066587,37562.0,37559.0,0.05]
[1643828747845,0.353365,37561.0,37559.0,0.05]
[1643828748248,0.90002424,37560.0,37559.0,0.05]
[1643828748448,1.25338924,37560.0,37559.0,0.05]
[1643828748645,1.30338924,37560.0,37559.0,0.05]
[1643828749646,0.50338924,37560.0,37559.0,0.05]
[1643828749947,0.6967088,37560.0,37559.0,0.05]
[1643828750199,0.50338924,37560.0,37559.0,0.05]
[1643828750405,0.45338924,37560.0,37559.0,0.05]
[1643828750802,0.50338924,37560.0,37559.0,0.05]
[1643828751000,0.45338924,37560.0,37559.0,0.05]
[1643828751200,0.10002424,37560.0,37559.0,0.05]
[1643828752003,0.45338924,37560.0,37559.0,0.05]
[1643828753099,0.09502424,37560.0,37559.0,0.05]
[1643828753962,0.49838924,37560.0,37559.0,0.05]
[1643828754160,0.14502424,37560.0,37559.0,0.05]
[1643828755963,0.09502424,37560.0,37559.0,0.05]
[1643828756362,0.14502424,37560.0,37559.0,0.05]
[1643828756565,0.44838924,37560.0,37559.0,0.05]
[1643828756863,0.353485,37560.0,37559.0,0.0505]